fUST/lending_fUST_20241108
["ID","MTS","AMOUNT","RATE_DAILY","PERIOD"]
[341664586,1731073844460,-500.0,0.00024658,2]
[341664588,1731073844470,-500.0,0.00024658,2]
[341664590,1731073844481,-500.0,0.00024658,2]
[341664592,1731073844491,-500.0,0.00024658,2]
[341664594,1731073844502,-500.0,0.00024658,2]
[341664596,1731073844512,-500.0,0.00024658,2]
[341664597,1731073844523,-518.44,0.000247,14]
[341664598,1731073844535,-500.0,0.00024702,2]
[341664599,1731073844652,-1185.24,0.00024702,2]
[341664600,1731073844662,-1869.47,0.00024702,2]
[341664601,1731073844673,-5943.8,0.00024702,2]
[341664602,1731073844683,-2336.0,0.00024702,2]
[341664603,1731073844692,-4676.24,0.00024702,2]
[341664605,1731073844702,-500.0,0.00024702,2]
[341664606,1731073844711,-500.0,0.00024702,2]
[341664607,1731073844721,-303.97830581,0.00024702,2]
[341664609,1731073844731,-151.0,0.00024702,7]
[341664611,1731073844740,-151.0,0.00024702,7]
[341664613,1731073844750,-500.0,0.00024702,2]
[341664615,1731073844759,-151.0,0.00024702,7]
[341664617,1731073844772,-230.03204724,0.00024702,2]
[341664619,1731073844782,-286.6,0.00024702,2]
[341664621,1731073844796,-276.141942,0.00024702,7]
[341664623,1731073844805,-276.141942,0.00024702,7]
[341664624,1731073844819,-205.396412,0.00024702,7]
[341664626,1731073844828,-205.396412,0.00024702,7]
[341664627,1731073844837,-625.78,0.00024702,2]
[341664628,1731073844846,-1018.22,0.00024703,2]
[341664629,1731073844856,-578.69,0.00024703,2]
[341664630,1731073844865,-500.0,0.00024703,2]
[341664631,1731073844875,-500.0,0.00024703,2]
[341664632,1731073844885,-500.0,0.00024703,2]
[341664633,1731073844896,-556.77,0.00024703,2]
[341664634,1731073844907,-943.22,0.00024703,2]
[341664635,1731073844916,-1302.08,0.00024703,2]
[341664636,1731073844926,-947.75,0.00024703,2]
[341664637,1731073844935,-500.0,0.00024703,2]
[341664638,1731073844945,-500.0,0.00024931,2]
[341664639,1731073844954,-280.0,0.00024932,2]
[341664640,1731073844964,-500.0,0.00024976,2]
[341664641,1731073844974,-1185.24,0.00024976,2]
[341664642,1731073844983,-1869.47,0.00024976,2]
[341664643,1731073844993,-5943.8,0.00024976,2]
[341664644,1731073845003,-2336.0,0.00024976,2]
[341664645,1731073845012,-4676.24,0.00024976,2]
[341664646,1731073845022,-500.0,0.00024976,2]
[341664647,1731073845031,-500.0,0.00024976,2]
[341664648,1731073845043,-500.0,0.00024976,2]
[341664649,1731073845053,-625.78,0.00024976,2]
[341664650,1731073845063,-1018.22,0.00024977,2]
[341664651,1731073845073,-578.69,0.00024977,2]
[341664652,1731073845082,-500.0,0.00024977,2]
[341664653,1731073845092,-500.0,0.00024977,2]
[341664654,1731073845101,-500.0,0.00024977,2]
[341664655,1731073845111,-556.77,0.00024977,2]
[341664656,1731073845120,-943.22,0.00024977,2]
[341664657,1731073845130,-1302.08,0.00024977,2]
[341664658,1731073845140,-947.75,0.00024977,2]
[341664659,1731073845150,-500.0,0.00024977,2]
[341664660,1731073845160,-280.0,0.00025,2]
[341664661,1731073845170,-163.0,0.00025,2]
[341664662,1731073845180,-548.45,0.00025,2]
[341664663,1731073845190,-500.0,0.00025021,2]
[341664664,1731073845200,-587.0,0.0002509,2]
[341664665,1731073845210,-150.112233,0.000251,20]
[341664666,1731073845220,-500.0,0.00025152,2]
[341664667,1731073845229,-3000.0,0.000252,2]
[341664668,1731073845239,-10669.81,0.000252,14]
[341664669,1731073845249,-9902.21,0.000252,14]
[341664670,1731073845258,-500.0,0.00025205,2]
[341664671,1731073845268,-174.805725,0.0002521,2]
[341664672,1731073845278,-534.202738,0.0002521,2]
[341664673,1731073845290,-189.182345,0.0002521,2]
[341664674,1731073845303,-534.202738,0.0002521,2]
[341664675,1731073845312,-176.771016,0.0002521,2]
[341664676,1731073845322,-267.101369,0.0002521,2]
[341664677,1731073845330,-167.450544,0.0002521,2]
[341664678,1731073845340,-3000.0,0.0002521,2]
[341664679,1731073845349,-151.0,0.0002521,7]
[341664680,1731073845357,-151.0,0.0002521,7]
[341664681,1731073845366,-220.148521,0.0002521,7]
[341664682,1731073845376,-3000.0,0.0002522,2]
[341664683,1731073845386,-3000.0,0.0002523,2]
[341664684,1731073845395,-3000.0,0.0002524,2]
[341664685,1731073845404,-500.0,0.00025249,2]
[341664686,1731073845413,-3000.0,0.0002525,2]
[341664687,1731073845423,-500.0,0.0002525,2]
[341664688,1731073845433,-1185.24,0.0002525,2]
[341664689,1731073845443,-1869.47,0.0002525,2]
[341664690,1731073845453,-1670.76472528,0.0002525,2]
[341664691,1731073845555,-2860.3471809,0.0002525,2]
[341664692,1731073845698,-502.95140285,0.00021917,2]
[341664693,1731073845708,-500.0,0.00021917,2]
[341664694,1731073845718,-500.0,0.00022191,2]
[341664695,1731073845727,-500.0,0.00022465,2]
[341664696,1731073845737,-500.0,0.00022739,2]
[341664697,1731073845747,-500.0,0.00023013,2]
[341664698,1731073845757,-500.0,0.00023287,2]
[341664699,1731073845768,-500.0,0.00023561,2]
[341664700,1731073845778,-1412.68809382,0.0002525,2]
[341664701,1731073845797,-2336.0,0.0002525,2]
[341664703,1731073845808,-4676.24,0.0002525,2]
[341664704,1731073845820,-500.0,0.0002525,2]
[341664705,1731073845830,-500.0,0.0002525,2]
[341664706,1731073845841,-481.47152551,0.0002525,2]
[341664710,1731073846512,-500.0,0.00022236,2]
[341664711,1731073846521,-500.0,0.00023835,2]
[341664712,1731073846531,-221.44751539,0.00024109,2]
[341664713,1731073846548,-278.55248461,0.00024109,2]
[341664714,1731073846559,-163.0,0.00025,2]
[341664715,1731073846569,-401.0,0.00025,2]
[341664716,1731073846580,-18.52847449,0.0002525,2]
[341664717,1731073846590,-625.78,0.0002525,2]
[341664718,1731073846601,-1018.22,0.00025251,2]
[341664719,1731073846611,-578.69,0.00025251,2]
[341664720,1731073846621,-500.0,0.00025251,2]
[341664721,1731073846631,-270.95462908,0.00025251,2]
[341664722,1731073846644,-229.04537092,0.00025251,2]
[341664723,1731073846655,-500.0,0.00025251,2]
[341664724,1731073846664,-556.77,0.00025251,2]
[341664725,1731073846674,-943.22,0.00025251,2]
[341664726,1731073846684,-1302.08,0.00025251,2]
[341664727,1731073846695,-947.75,0.00025251,2]
[341664728,1731073846706,-500.0,0.00025251,2]
[341664729,1731073846716,-3000.0,0.0002526,2]
[341664730,1731073846727,-3000.0,0.0002527,2]
[341664731,1731073846738,-504.72780473,0.00025273,2]
[341664732,1731073846749,-3000.0,0.0002528,2]
[341664733,1731073846759,-500.0,0.00025289,2]
[341664734,1731073846771,-3000.0,0.0002529,2]
[341664735,1731073846783,-1765.38,0.000253,2]
[341664736,1731073846795,-3000.0,0.000253,2]
[341664737,1731073846805,-775.74044738,0.0002531,2]
[341664738,1731073846820,-2224.25955262,0.0002531,2]
[341664739,1731073846831,-2936.74044738,0.0002532,2]
[341664740,1731073848417,166.649555,0.00013973,2]
[341664742,1731074003774,193.3520419,0.00020738,2]
[341664743,1731074108285,694.44444444,0.00020843,2]
[341664744,1731074188009,24900.0,0.00020719,2]
[341664745,1731074201352,580.7766874,0.00020719,2]
[341664746,1731074297566,253.218023,0.00020681,2]
[341664748,1731074433003,153.796,0.0002579,104]
[341664749,1731074513849,178.551296,0.00020334,2]
[341664750,1731074528860,166.649555,0.00013973,2]
[341664752,1731074600722,250.0,0.00020541,2]
[341664753,1731074604123,9383.8133704,0.00020594,2]
[341664754,1731074606621,1011.38,0.00020843,2]
[341664755,1731074719195,694.44444444,0.00020843,2]
[341664757,1731074795452,-1178.702556,0.00020947,2]
[341664758,1731074795472,-1178.702556,0.00021632,2]
[341664759,1731074795492,-320.53845322,0.00021817,2]
[341664760,1731074795513,-300.0,0.00021916,2]
[341664761,1731074795534,-300.0,0.00021916,2]
[341664762,1731074795554,-535.7594501,0.00021917,2]
[341664763,1731074795575,-500.0,0.00021917,2]
[341664764,1731074795596,-500.0,0.00021917,2]
[341664765,1731074795616,-440.60899483,0.00021917,2]
[341664766,1731074795635,-500.0,0.00021917,2]
[341664767,1731074795656,-500.0,0.00021917,2]
[341664768,1731074795676,-500.0,0.00021917,2]
[341664769,1731074795696,-500.0,0.00021917,2]
[341664770,1731074795717,-500.0,0.00021917,2]
[341664771,1731074795737,-584.47699531,0.00021917,2]
[341664772,1731074795760,-500.0,0.00021917,2]
[341664773,1731074795784,-44.90205054,0.00021917,2]
[341664828,1731075032460,160.0,0.00020843,2]
[341664846,1731075032618,-253.218023,0.00020901,2]
[341664848,1731075032628,-99.593757,0.00021116,2]
[341664850,1731075032640,-200.406243,0.00021116,2]
[341664852,1731075032649,-300.0,0.00021116,2]
[341664854,1731075032659,-24900.0,0.00021117,2]
[341664856,1731075032668,-694.44444444,0.00021117,2]
[341664858,1731075032677,-213.91710057,0.00021717,2]
[341664860,1731075032686,-811.47680096,0.00021817,2]
[341664862,1731075032696,-765.61153662,0.00021817,2]
[341664864,1731075032707,-504.32,0.00021907,3]
[341664866,1731075032717,-455.09794946,0.00021917,2]
[341664868,1731075032726,-500.0,0.00021917,2]
[341664870,1731075032735,-455.88538335,0.00021917,2]
[341664872,1731075032746,-44.11461665,0.00021917,2]
[341664874,1731075032755,-500.0,0.00021917,2]
[341664876,1731075032765,-500.0,0.00021917,2]
[341664878,1731075032774,-429.33538333,0.00021917,2]
[341664881,1731075032785,-168.25084029,0.00021917,2]
[341664883,1731075032794,-500.0,0.00021917,2]
[341664885,1731075032803,-77.79129765,0.00021917,2]
[341664922,1731075038713,-160.64229731,0.00021916,2]
[341664923,1731075038723,-500.0,0.00021916,2]
[341664924,1731075038732,-167.90403893,0.00021916,2]
[341664925,1731075038742,-500.0,0.00021916,2]
[341664926,1731075038751,-500.0,0.00021916,2]
[341664927,1731075038761,-500.0,0.00021916,2]
[341664928,1731075038771,-500.0,0.00021916,2]
[341664929,1731075038781,-500.0,0.00021916,2]
[341664931,1731075038791,-500.0,0.00021916,2]
[341664932,1731075038800,-500.0,0.00021916,2]
[341664933,1731075038810,-500.0,0.00021916,2]
[341664934,1731075038820,-500.0,0.00021916,2]
[341664935,1731075038829,-500.0,0.00021916,2]
[341664936,1731075038838,-500.0,0.00021916,2]
[341664937,1731075038847,-160.75384229,0.00021916,2]
[341664938,1731075038856,-500.0,0.00021916,2]
[341664939,1731075038865,-44.17024155,0.00021916,2]
[341664940,1731075038879,-455.82975845,0.00021916,2]
[341664941,1731075038888,-500.0,0.00021916,2]
[341664942,1731075038898,-500.0,0.00021916,2]
[341664943,1731075038907,-500.0,0.00021916,2]
[341664944,1731075038916,-500.0,0.00021916,2]
[341664945,1731075038926,-500.0,0.00021916,2]
[341664946,1731075038936,-500.0,0.00021916,2]
[341664947,1731075038945,-418.29191618,0.00021916,2]
[341664948,1731075038961,-81.70808382,0.00021916,2]
[341664949,1731075038971,-500.0,0.00021916,2]
[341664950,1731075038980,-18.27990421,0.00021916,2]
[341664954,1731075040528,-266.95937669,0.00021916,2]
[341664981,1731075043807,-214.7607191,0.00021916,2]
[341664982,1731075043818,-500.0,0.00021916,2]
[341664983,1731075043827,-272.3160649,0.00021916,2]
[341664984,1731075043839,-227.6839351,0.00021916,2]
[341664985,1731075043849,-500.0,0.00021916,2]
[341664986,1731075043859,-500.0,0.00021916,2]
[341664987,1731075043869,-528.55640714,0.00021916,2]
[341664988,1731075043882,-500.0,0.00021916,2]
[341664989,1731075043892,-500.0,0.00021916,2]
[341664990,1731075043902,-500.0,0.00021916,2]
[341664991,1731075043912,-500.0,0.00021916,2]
[341664992,1731075043923,-500.0,0.00021916,2]
[341664993,1731075043932,-600.62512125,0.00021916,2]
[341664994,1731075043941,-500.0,0.00021916,2]
[341664995,1731075043951,-500.0,0.00021916,2]
[341664996,1731075043962,-500.0,0.00021916,2]
[341664997,1731075043971,-500.0,0.00021916,2]
[341664998,1731075043980,-500.0,0.00021916,2]
[341664999,1731075043989,-500.0,0.00021916,2]
[341665000,1731075043999,-500.0,0.00021916,2]
[341665001,1731075044008,-500.0,0.00021916,2]
[341665002,1731075044017,-500.0,0.00021916,2]
[341665003,1731075044026,-500.0,0.00021916,2]
[341665004,1731075044035,-500.0,0.00021916,2]
[341665005,1731075044045,-500.0,0.00021916,2]
[341665006,1731075044054,-500.0,0.00021916,2]
[341665007,1731075044064,-500.0,0.00021916,2]
[341665008,1731075044073,-500.0,0.00021916,2]
[341665009,1731075044082,-500.0,0.00021916,2]
[341665010,1731075044091,-500.0,0.00021916,2]
[341665011,1731075044107,-500.0,0.00021916,2]
[341665012,1731075044117,-500.0,0.00021916,2]
[341665013,1731075044126,-500.0,0.00021916,2]
[341665014,1731075044135,-500.0,0.00021916,2]
[341665015,1731075044144,-500.0,0.00021916,2]
[341665016,1731075044153,-500.0,0.00021916,2]
[341665017,1731075044260,-500.0,0.00021916,2]
[341665018,1731075044271,-571.80213049,0.00021916,2]
[341665019,1731075044281,-447.73919639,0.00021916,2]
[341665020,1731075044290,-500.0,0.00021916,2]
[341665021,1731075044300,-500.0,0.00021916,2]
[341665022,1731075044310,-500.0,0.00021916,2]
[341665023,1731075044320,-500.0,0.00021916,2]
[341665024,1731075044331,-500.0,0.00021916,2]
[341665025,1731075044341,-500.0,0.00021916,2]
[341665026,1731075044350,-500.0,0.00021916,2]
[341665027,1731075044360,-500.0,0.00021916,2]
[341665028,1731075044370,-357.17296674,0.00021917,2]
[341665029,1731075044380,-495.87982466,0.00021917,2]
[341665030,1731075044389,-501.38397602,0.00021917,2]
[341665031,1731075044398,-500.0,0.00021917,2]
[341665032,1731075044407,-500.0,0.00021917,2]
[341665033,1731075044416,-500.0,0.00021917,2]
[341665034,1731075044426,-500.0,0.00021917,2]
[341665035,1731075044435,-500.0,0.00021917,2]
[341665036,1731075044445,-500.0,0.00021917,2]
[341665037,1731075044456,-500.0,0.00021917,2]
[341665038,1731075044466,-500.0,0.00021917,2]
[341665039,1731075044475,-510.42369737,0.00021917,2]
[341665040,1731075044485,-500.0,0.00021917,2]
[341665041,1731075044495,-500.0,0.00021917,2]
[341665042,1731075044505,-500.0,0.00021917,2]
[341665043,1731075044515,-500.0,0.00021917,2]
[341665044,1731075044525,-500.0,0.00021917,2]
[341665045,1731075044535,-500.0,0.00021917,2]
[341665046,1731075044545,-500.0,0.00021917,2]
[341665047,1731075044555,-500.0,0.00021917,2]
[341665048,1731075044565,-500.0,0.00021917,2]
[341665049,1731075044575,-500.0,0.00021917,2]
[341665050,1731075044585,-500.0,0.00021917,2]
[341665051,1731075044595,-524.71,0.00021917,2]
[341665052,1731075044604,-500.0,0.00021917,2]
[341665053,1731075044614,-500.0,0.00021917,2]
[341665054,1731075044624,-500.0,0.00021917,2]
[341665055,1731075044634,-500.0,0.00021917,2]
[341665056,1731075044644,-504.61728847,0.00021917,2]
[341665057,1731075044654,-500.0,0.00021917,2]
[341665058,1731075044664,-594.98401866,0.00021917,2]
[341665059,1731075044673,-507.74045192,0.00021917,2]
[341665060,1731075044683,-500.0,0.00021917,2]
[341665061,1731075044691,-503.76966058,0.00021917,2]
[341665062,1731075044701,-887.91,0.00021917,2]
[341665063,1731075044711,-537.46616543,0.00021917,2]
[341665064,1731075044720,-522.61538961,0.00021917,2]
[341665065,1731075044731,-500.0,0.00021917,2]
[341665066,1731075044740,-500.0,0.00021917,2]
[341665067,1731075044750,-500.0,0.00021917,2]
[341665068,1731075044759,-559.51227185,0.00021917,2]
[341665069,1731075044769,-500.0,0.00021917,2]
[341665070,1731075044778,-500.0,0.00021917,2]
[341665071,1731075044788,-522.04984613,0.00021917,2]
[341665072,1731075044797,-500.0,0.00021917,2]
[341665073,1731075044807,-506.1044494,0.00021917,2]
[341665074,1731075044817,-500.0,0.00021917,2]
[341665075,1731075044838,-500.0,0.00021917,2]
[341665076,1731075044848,-500.0,0.00021917,2]
[341665077,1731075044858,-158.01943536,0.00021917,2]
[341665078,1731075044868,-500.0,0.00021917,2]
[341665079,1731075044878,-500.0,0.00021917,2]
[341665080,1731075044892,-500.0,0.00021917,2]
[341665081,1731075044903,-500.0,0.00021917,2]
[341665082,1731075044912,-513.60240057,0.00021917,2]
[341665083,1731075044922,-500.0,0.00021917,2]
[341665084,1731075044934,-500.0,0.00021917,2]
[341665085,1731075044944,-500.0,0.00021917,2]
[341665086,1731075044957,-500.0,0.00021917,2]
[341665087,1731075044968,-500.0,0.00021917,2]
[341665088,1731075044979,-500.0,0.00021917,2]
[341665089,1731075044990,-500.0,0.00021917,2]
[341665090,1731075045000,-500.0,0.00021917,2]
[341665091,1731075045010,-500.0,0.00021917,2]
[341665092,1731075045022,-615.62101791,0.00021917,2]
[341665093,1731075045031,-1459.6,0.00021917,2]
[341665094,1731075045041,-221.59322181,0.00021917,2]
[341665095,1731075045051,-524.55694049,0.00021917,2]
[341665096,1731075045061,-500.0,0.00021917,2]
[341665097,1731075045071,-200.0,0.00021917,2]
[341665098,1731075045081,-500.0,0.00021917,2]
[341665099,1731075045092,-500.0,0.00021917,2]
[341665100,1731075045103,-500.0,0.00021917,2]
[341665101,1731075045112,-500.0,0.00021917,2]
[341665102,1731075045123,-587.0665104,0.00021917,2]
[341665103,1731075045132,-500.0,0.00021917,2]
[341665104,1731075045142,-1062.81,0.00021917,2]
[341665105,1731075045153,-736.36,0.00021917,2]
[341665106,1731075045164,-548.24997201,0.00021917,2]
[341665107,1731075045175,-500.0,0.00021917,2]
[341665108,1731075045184,-500.0,0.00021917,2]
[341665109,1731075045194,-500.0,0.00021917,2]
[341665110,1731075045206,-500.0,0.00021917,2]
[341665111,1731075045216,-511.72303551,0.00021917,2]
[341665112,1731075045227,-500.0,0.00021917,2]
[341665113,1731075045237,-500.0,0.00021917,2]
[341665114,1731075045246,-500.0,0.00021917,2]
[341665115,1731075045256,-500.0,0.00021917,2]
[341665116,1731075045267,-495.42779697,0.00021917,2]
[341665117,1731075045277,-350.9487335,0.00021917,2]
[341665118,1731075045286,-500.0,0.00021917,2]
[341665119,1731075045296,-500.0,0.00021917,2]
[341665120,1731075045306,-500.0,0.00021917,2]
[341665121,1731075045315,-500.0,0.00021917,2]
[341665122,1731075045324,-500.0,0.00021917,2]
[341665123,1731075045334,-500.0,0.00021917,2]
[341665124,1731075045343,-500.0,0.00021917,2]
[341665125,1731075045352,-2954.81,0.00021917,2]
[341665126,1731075045362,-500.0,0.00021917,2]
[341665127,1731075045372,-500.0,0.00021917,2]
[341665128,1731075045382,-695.6,0.00021917,2]
[341665129,1731075045393,-500.0,0.00021917,2]
[341665130,1731075045403,-500.0,0.00021917,2]
[341665131,1731075045412,-500.0,0.00021917,2]
[341665132,1731075045422,-500.0,0.00021917,2]
[341665133,1731075045432,-508.56068321,0.00021917,2]
[341665134,1731075045442,-8935.42,0.00021917,2]
[341665135,1731075045451,-500.0,0.00021917,2]
[341665136,1731075045463,-1681.18,0.00021917,2]
[341665137,1731075045472,-1724.62,0.00021917,2]
[341665138,1731075045482,-500.0,0.00021917,2]
[341665139,1731075045493,-7294.51,0.00021917,2]
[341665140,1731075045503,-500.0,0.00021917,2]
[341665141,1731075045515,-500.0,0.00021917,2]
[341665142,1731075045525,-500.0,0.00021917,2]
[341665143,1731075045535,-500.0,0.00021917,2]
[341665144,1731075045546,-500.0,0.00021917,2]
[341665145,1731075045556,-500.0,0.00021917,2]
[341665146,1731075045566,-517.66741829,0.00021917,2]
[341665147,1731075045577,-500.0,0.00021917,2]
[341665148,1731075045588,-500.0,0.00021917,2]
[341665149,1731075045598,-447.27424828,0.00021917,2]
[341665150,1731075045608,-500.0,0.00021917,2]
[341665151,1731075045619,-507.27518845,0.00021917,2]
[341665152,1731075045629,-500.0,0.00021917,2]
[341665153,1731075045640,-2336.0,0.00021917,2]
[341665154,1731075045651,-500.0,0.00021917,2]
[341665155,1731075045661,-510.85079377,0.00021917,2]
[341665156,1731075045671,-500.0,0.00021917,2]
[341665157,1731075045681,-1099.69,0.00021917,2]
[341665158,1731075045690,-641.11,0.00021917,2]
[341665159,1731075045699,-500.0,0.00021917,2]
[341665160,1731075045711,-500.0,0.00021917,2]
[341665161,1731075045721,-500.0,0.00021917,2]
[341665162,1731075045731,-506.85053539,0.00021917,2]
[341665163,1731075045741,-507.65509799,0.00021917,2]
[341665164,1731075045751,-500.0,0.00021917,2]
[341665165,1731075045762,-500.0,0.00021917,2]
[341665166,1731075045772,-500.0,0.00021917,2]
[341665167,1731075045783,-500.0,0.00021917,2]
[341665168,1731075045794,-504.03135058,0.00021917,2]
[341665169,1731075045805,-500.0,0.00021917,2]
[341665170,1731075045815,-166.666666,0.00021918,2]
[341665171,1731075045825,-500.0,0.00021918,2]
[341665172,1731075045836,-500.0,0.00021918,2]
[341665173,1731075045847,-500.0,0.00021918,2]
[341665174,1731075045858,-765.61153661,0.00021954,2]
[341665175,1731075045868,-765.61153661,0.00022091,2]
[341665176,1731075045880,-366.59152522,0.00022173,2]
[341665177,1731075045892,-500.0,0.00022173,2]
[341665178,1731075045902,-500.0,0.00022173,2]
[341665179,1731075045914,-500.0,0.00022173,2]
[341665180,1731075045926,-502.02165473,0.00022173,2]
[341665181,1731075045936,-622.68721089,0.00022173,2]
[341665182,1731075045946,-500.0,0.00022173,2]
[341665183,1731075045956,-500.0,0.00022173,2]
[341665185,1731075045970,-500.0,0.00022173,2]
[341665188,1731075045982,-500.0,0.0002219,2]
[341665189,1731075045992,-500.0,0.0002219,2]
[341665191,1731075046002,-500.0,0.0002219,2]
[341665193,1731075046012,-180.97078193,0.0002219,2]
[341665195,1731075046023,-158.61493869,0.0002219,2]
[341665197,1731075046034,-500.0,0.0002219,2]
[341665199,1731075046045,-611.00839069,0.0002219,2]
[341665201,1731075046058,-559.22024382,0.0002219,2]
[341665202,1731075046068,-171.28303506,0.00022191,2]
[341665203,1731075046078,-500.0,0.00022191,2]
[341665204,1731075046088,-307.09,0.00022191,2]
[341665205,1731075046098,-500.0,0.00022191,2]
[341665206,1731075046108,-500.0,0.00022191,2]
[341665208,1731075046119,-500.0,0.00022191,2]
[341665209,1731075046130,-500.0,0.00022191,2]
[341665210,1731075046140,-530.15,0.00022191,2]
[341665212,1731075046150,-500.0,0.00022191,2]
[341665213,1731075046161,-517.14394288,0.00022191,2]
[341665214,1731075046171,-500.0,0.00022191,2]
[341665216,1731075046183,-500.0,0.00022191,2]
[341665218,1731075046194,-500.0,0.00022191,2]
[341665219,1731075046204,-500.0,0.00022191,2]
[341665220,1731075046216,-500.0,0.00022191,2]
[341665221,1731075046226,-500.0,0.00022191,2]
[341665222,1731075046236,-500.0,0.00022191,2]
[341665223,1731075046247,-506.11243307,0.00022191,2]
[341665224,1731075046258,-500.0,0.00022191,2]
[341665225,1731075046269,-500.0,0.00022191,2]
[341665226,1731075046279,-500.0,0.00022191,2]
[341665227,1731075046289,-887.91,0.00022191,2]
[341665228,1731075046300,-500.0,0.00022191,2]
[341665229,1731075046310,-500.0,0.00022191,2]
[341665230,1731075046321,-344.17252419,0.00022191,2]
[341665231,1731075046332,-219.41619064,0.00022191,2]
[341665232,1731075046342,-1459.6,0.00022191,2]
[341665233,1731075046353,-500.0,0.00022191,2]
[341665234,1731075046363,-1062.81,0.00022191,2]
[341665235,1731075046374,-736.36,0.00022191,2]
[341665236,1731075046385,-500.0,0.00022191,2]
[341665237,1731075046395,-500.0,0.00022191,2]
[341665238,1731075046405,-500.0,0.00022191,2]
[341665239,1731075046415,-500.0,0.00022191,2]
[341665240,1731075046426,-500.0,0.00022191,2]
[341665241,1731075046435,-500.0,0.00022191,2]
[341665242,1731075046447,-500.0,0.00022191,2]
[341665243,1731075046458,-284.36439111,0.00022191,2]
[341665244,1731075046469,-2954.81,0.00022191,2]
[341665245,1731075046479,-500.0,0.00022191,2]
[341665246,1731075046490,-695.6,0.00022191,2]
[341665247,1731075046501,-500.0,0.00022191,2]
[341665248,1731075046511,-8935.42,0.00022191,2]
[341665249,1731075046521,-1681.18,0.00022191,2]
[341665250,1731075046531,-1724.62,0.00022191,2]
[341665251,1731075046541,-242.3951252,0.00022191,2]
[341665252,1731075046550,-7294.51,0.00022191,2]
[341665253,1731075046560,-500.0,0.00022191,2]
[341665255,1731075046570,-500.0,0.00022191,2]
[341665256,1731075046580,-212.89393205,0.00022191,2]
[341665257,1731075046590,-500.0,0.00022191,2]
[341665258,1731075046601,-606.45459281,0.00022191,2]
[341665259,1731075046610,-500.0,0.00022191,2]
[341665260,1731075046621,-2336.0,0.00022191,2]
[341665261,1731075046738,-500.0,0.00022191,2]
[341665262,1731075046749,-1099.69,0.00022191,2]
[341665263,1731075046759,-641.11,0.00022191,2]
[341665264,1731075046769,-500.0,0.00022191,2]
[341665265,1731075046779,-500.0,0.00022191,2]
[341665266,1731075046788,-500.0,0.00022191,2]
[341665267,1731075046798,-500.0,0.00022191,2]
[341665268,1731075046808,-500.0,0.00022191,2]
[341665269,1731075046818,-500.0,0.00022191,2]
[341665270,1731075046827,-500.0,0.00022191,2]
[341665271,1731075046837,-811.47680095,0.00022228,2]
[341665272,1731075046847,-500.0,0.00022235,2]
[341665273,1731075046857,-500.0,0.00022236,2]
[341665274,1731075046867,-500.0,0.00022236,2]
[341665275,1731075046879,-500.0,0.00022236,2]
[341665276,1731075046889,-500.0,0.00022236,2]
[341665277,1731075046899,-455.01368085,0.00022236,2]
[341665278,1731075046908,-530.79658256,0.00022236,2]
[341665279,1731075046919,-417.68695137,0.00022236,2]